fUSD/lending_fUSD_20240804
["ID","MTS","AMOUNT","RATE_DAILY","PERIOD"]
[334133478,1722789155477,-1456.38,0.00023917,9]
[334133479,1722789155487,-1356.63,0.00023917,9]
[334133480,1722789155498,-911.83,0.00023917,9]
[334133481,1722789155508,-500.0,0.00023917,9]
[334133482,1722789155517,-900.99,0.00023917,9]
[334133483,1722789155528,-1747.36,0.00023917,9]
[334133484,1722789155539,-2014.48,0.00023917,9]
[334133485,1722789155549,-2308.05,0.00023917,9]
[334133486,1722789155559,-500.0,0.00023917,9]
[334133487,1722789155569,-500.0,0.00023917,9]
[334133488,1722789155579,-2084.47,0.00023917,9]
[334133489,1722789155590,-500.0,0.00023917,9]
[334133490,1722789155599,-3204.33,0.00023917,9]
[334133491,1722789155610,-500.0,0.00023917,9]
[334133492,1722789155620,-782.31,0.00023917,9]
[334133493,1722789155630,-1114.5,0.00023917,9]
[334133494,1722789155640,-1467.0,0.00023917,9]
[334133495,1722789155649,-1170.79,0.00023917,9]
[334133496,1722789155659,-1027.92,0.00023917,9]
[334133497,1722789155669,-500.0,0.00023917,9]
[334133498,1722789155680,-584.12,0.00023917,9]
[334133499,1722789155690,-1503.19,0.00023917,9]
[334133500,1722789155700,-500.0,0.00023917,9]
[334133501,1722789155710,-500.0,0.00023917,9]
[334133502,1722789155727,-2370.59,0.00023917,9]
[334133503,1722789155738,-8526.84,0.00023917,9]
[334133504,1722789155748,-2115.13,0.00023917,9]
[334133505,1722789155758,-931.26,0.00023917,9]
[334133506,1722789155768,-792.92,0.00023917,9]
[334133507,1722789155778,-500.0,0.00023917,9]
[334133508,1722789155788,-185.22084003,0.00023917,9]
[334133509,1722789155799,-500.0,0.00023917,9]
[334133510,1722789155808,-332.29663566,0.00023917,9]
[334133511,1722789155818,-500.0,0.00023917,9]
[334133512,1722789155827,-1212.39,0.00023917,9]
[334133513,1722789155838,-1614.2,0.00023917,9]
[334133514,1722789155847,-2872.78,0.00023917,9]
[334133515,1722789155857,-940.66,0.00023917,9]
[334133516,1722789155867,-500.0,0.00023917,9]
[334133517,1722789155877,-720.05,0.00023917,9]
[334133518,1722789155887,-500.0,0.00023917,9]
[334133519,1722789155897,-2278.54,0.00023917,9]
[334133520,1722789155906,-1140.48,0.00023917,9]
[334133521,1722789155916,-1064.77,0.00023917,9]
[334133522,1722789155926,-500.0,0.00023917,9]
[334133523,1722789155936,-500.0,0.00023917,9]
[334133524,1722789155945,-2298.73,0.00023917,9]
[334133525,1722789155955,-952.32,0.00023917,9]
[334133526,1722789155973,-664.1,0.00023917,9]
[334133527,1722789155984,-1168.02,0.00023917,9]
[334133528,1722789155994,-1420.45,0.00023917,9]
[334133529,1722789156004,-735.18,0.00023917,9]
[334133530,1722789156014,-500.0,0.00023917,9]
[334133531,1722789156023,-500.0,0.00023917,9]
[334133532,1722789156033,-150.0,0.00023928,2]
[334133533,1722789156043,-150.0,0.00023943,2]
[334133534,1722789156052,-150.0,0.00023956,2]
[334133535,1722789156061,-500.0,0.00023962,7]
[334133536,1722789156071,-161.31531637,0.00023973,30]
[334133537,1722789156081,-150.0,0.00023976,2]
[334133538,1722789156090,-1417.00799508,0.00023984,2]
[334133539,1722789156099,-44999.52107826,0.0002399,2]
[334133540,1722789156108,-1000.01779976,0.00024,7]
[334133541,1722789156117,-770.22149108,0.00024,4]
[334133542,1722789156126,-2337.51,0.00024,2]
[334133543,1722789156135,-500.0,0.00024,9]
[334133544,1722789156144,-500.0,0.00024,9]
[334133545,1722789156153,-500.0,0.00024,9]
[334133546,1722789156162,-500.0,0.00024,9]
[334133547,1722789156171,-581.19,0.00024,9]
[334133548,1722789156181,-500.0,0.00024,9]
[334133549,1722789156194,-502.62,0.00024,9]
[334133550,1722789156204,-730.08,0.00024,9]
[334133551,1722789156220,-500.0,0.00024,9]
[334133552,1722789156231,-588.86,0.00024,9]
[334133553,1722789156241,-500.0,0.00024,9]
[334133554,1722789156250,-342.33934763,0.00024,9]
[334133555,1722789156260,-500.0,0.00024,9]
[334133556,1722789156271,-850.72,0.00024,9]
[334133557,1722789156280,-760.21,0.00024,9]
[334133558,1722789156290,-626.04,0.00024,9]
[334133559,1722789156299,-500.0,0.00024,9]
[334133560,1722789156308,-500.0,0.00024,9]
[334133561,1722789156318,-561.46,0.00024,9]
[334133562,1722789156328,-500.0,0.00024,9]
[334133563,1722789156338,-500.0,0.00024,9]
[334133564,1722789156347,-500.0,0.00024,9]
[334133565,1722789156356,-500.0,0.00024,9]
[334133566,1722789156366,-472.28025117,0.00024,9]
[334133567,1722789156380,-27.71974883,0.00024,9]
[334133568,1722789156390,-550.62,0.00024,9]
[334133569,1722789156400,-500.0,0.00024,9]
[334133570,1722789156410,-500.0,0.00024,9]
[334133571,1722789156419,-500.0,0.00024,9]
[334133572,1722789156429,-618.50976303,0.00024,9]
[334133573,1722789156438,-500.0,0.00024,9]
[334133574,1722789156447,-591.33,0.00024,9]
[334133575,1722789156457,-1011.69,0.00024,9]
[334133576,1722789156473,-511.64,0.00024,9]
[334133577,1722789156483,-314.27089148,0.00024,9]
[334133578,1722789156494,-185.72910852,0.00024,9]
[334133579,1722789156503,-559.06,0.00024,9]
[334133580,1722789156513,-702.5,0.00024,9]
[334133581,1722789156522,-500.0,0.00024,9]
[334133582,1722789156531,-500.0,0.00024,9]
[334133583,1722789156541,-646.51,0.00024,9]
[334133584,1722789156550,-1314.76,0.00024,9]
[334133585,1722789156793,-639.16572807,0.00024,9]
[334133586,1722789156802,-532.71,0.00024,9]
[334133587,1722789156812,-390.55,0.00024,9]
[334133588,1722789156821,-721.27,0.00024,9]
[334133589,1722789156830,-500.0,0.00024,9]
[334133590,1722789156840,-500.0,0.00024,9]
[334133591,1722789156850,-500.0,0.00024,9]
[334133592,1722789156859,-540.98,0.00024,9]
[334133593,1722789156869,-521.65,0.00024,9]
[334133594,1722789156880,-831.69,0.00024,9]
[334133595,1722789156890,-261.35,0.00024,9]
[334133596,1722789156900,-785.3,0.00024,9]
[334133597,1722789156910,-780.18,0.00024,9]
[334133598,1722789156919,-500.0,0.00024,9]
[334133599,1722789156929,-500.0,0.00024,9]
[334133600,1722789156939,-500.0,0.00024,9]
[334133601,1722789156949,-500.0,0.00024,9]
[334133602,1722789156959,-377.86,0.00024,9]
[334133603,1722789156976,-500.0,0.00024,9]
[334133604,1722789156985,-559.95,0.00024,9]
[334133605,1722789156995,-500.0,0.00024,9]
[334133606,1722789157005,-1164.15,0.00024,9]
[334133607,1722789157015,-995.62,0.00024,9]
[334133608,1722789157024,-500.0,0.00024,9]
[334133609,1722789157035,-500.0,0.00024,9]
[334133610,1722789157044,-500.0,0.00024,9]
[334133611,1722789157054,-576.22,0.00024,9]
[334133612,1722789157065,-543.19,0.00024,9]
[334133613,1722789157075,-500.0,0.00024,9]
[334133614,1722789157084,-500.0,0.00024,9]
[334133615,1722789157094,-500.0,0.00024,9]
[334133616,1722789157104,-500.0,0.00024,9]
[334133617,1722789157113,-500.0,0.00024,9]
[334133618,1722789157123,-599.57,0.00024,2]
[334133619,1722789157132,-500.0,0.00024,9]
[334133620,1722789157142,-500.0,0.00024,9]
[334133621,1722789157152,-500.0,0.00024,9]
[334133622,1722789157163,-500.0,0.00024,9]
[334133623,1722789157173,-500.0,0.00024,9]
[334133624,1722789157183,-550.63,0.00024,7]
[334133625,1722789157196,-500.0,0.00024,9]
[334133626,1722789157206,-603.97,0.00024,9]
[334133627,1722789157224,-65.90245848,0.00024,9]
[334133628,1722789157242,-772.03888023,0.00023342,9]
[334133630,1722789206690,1000.0,0.00025679,120]
[334133631,1722789207044,1000.0,0.00026783,120]
[334133632,1722789214938,500.0,0.00025679,120]
[334133633,1722789231988,200.0,0.00025886,120]
[334133634,1722789298212,294.8,0.00026741,120]
[334133635,1722789471505,300.0,0.00027,120]
[334133636,1722789479867,300.0,0.00027,120]
[334133637,1722789507089,300.0,0.00027,120]
[334133638,1722789518245,300.0,0.00027,120]
[334133639,1722789530948,287.929462,0.00027,120]
[334133641,1722789796018,1000.0,0.00026066,120]
[334133642,1722789796584,1000.0,0.00026783,120]
[334133643,1722789805427,500.0,0.00026066,120]
[334133644,1722789823285,200.0,0.00026276,120]
[334133646,1722790059458,1000.0,0.0002,120]
[334133647,1722790065861,1000.0,0.00021,120]
[334133648,1722790072764,1000.0,0.00022,120]
[334133649,1722790078979,1000.0,0.00023,120]
[334133650,1722790085106,1000.0,0.00024,120]
[334133651,1722790089876,1000.0,0.00025,120]
[334133652,1722790093968,366.69302037,0.00025,90]
[334133656,1722790096026,1000.0,0.00026,120]
[334133657,1722790100956,1000.0,0.00027,120]
[334133658,1722790133579,1073.74,0.00027,120]
[334133659,1722790145753,1000.0,0.00027,120]
[334133718,1722790231585,-185.5512,0.000108,2]
[334133721,1722790231596,-4790.7993,0.000109,2]
[334133722,1722790231607,-550.0,0.00011,2]
[334133725,1722790231618,-155.0,0.00012696,2]
[334133727,1722790231629,-155.0,0.00012749,2]
[334133728,1722790231641,-238.6495,0.000129,2]
[334133729,1722790231654,-700.0,0.000129,2]
[334133730,1722790231700,-5138.4215,0.000129,2]
[334133731,1722790231710,-600.0,0.00013,2]
[334133732,1722790231720,-150.0,0.00013671,2]
[334133733,1722790231730,-800.0,0.00013699,2]
[334133734,1722790231740,-800.0,0.00013699,2]
[334133735,1722790231751,-800.0,0.00013699,2]
[334133736,1722790231762,-800.0,0.00013699,2]
[334133737,1722790231773,-800.0,0.00013699,2]
[334133738,1722790231784,-800.0,0.00013699,2]
[334133739,1722790231795,-155.78,0.00013973,2]
[334133740,1722790231806,-166.38,0.00013973,2]
[334133741,1722790231817,-650.0,0.00015,2]
[334133742,1722790231827,-633.99,0.00015,2]
[334133743,1722790231837,-169.67,0.00015951,2]
[334133744,1722790231848,-2000.0,0.00017,2]
[334133745,1722790231859,-700.0,0.00017,2]
[334133746,1722790231870,-964.4,0.00017,2]
[334133747,1722790231880,-3709.3,0.00017,2]
[334133748,1722790231890,-162.0585,0.00017,2]
[334133749,1722790231908,-337.9315,0.00017,2]
[334133750,1722790231918,-146.62612474,0.000171,2]
[334133755,1722790232589,-114.57387526,0.000171,2]
[334133757,1722790232602,-1198.72,0.000171,2]
[334133759,1722790232611,-213.17,0.00017938,2]
[334133761,1722790232621,-349.9,0.00018891,2]
[334133763,1722790232631,-211.54413421,0.00019045,2]
[334133765,1722790232641,-168.26,0.00019296,2]
[334133766,1722790232651,-250.0,0.00019457,2]
[334133767,1722790232661,-160.83,0.00019666,2]
[334133768,1722790232670,-250.0,0.0001984,2]
[334133769,1722790232680,-198.89,0.00019935,2]
[334133770,1722790232694,-526.32,0.00019949,2]
[334133771,1722790232704,-213.17,0.00020202,2]
[334133772,1722790232713,-522.42518221,0.00020821,2]
[334133773,1722790232723,-349.9,0.00021253,2]
[334133774,1722790232733,-294.8,0.00021393,2]
[334133775,1722790232743,-164.81,0.00021589,30]
[334133776,1722790232752,-319.78991286,0.000216,2]
[334133777,1722790232764,-2680.21008714,0.000216,2]
[334133779,1722790232774,-16981.57910511,0.00022,2]
[334133786,1722790232841,-3750.7873,0.00022,2]
[334133792,1722790237566,-211.54413421,0.00018999,2]
[334133793,1722790237576,-54.07086579,0.00022,2]
[334133794,1722790237588,-395.52138118,0.00022,2]
[334133795,1722790237602,-900.58061867,0.00022,2]
[334133796,1722790237612,-155.78,0.00022174,2]
[334133797,1722790237621,-213.17,0.00022466,2]
[334133798,1722790237631,-621.0,0.00022785,2]
[334133799,1722790237641,-1289.845,0.00022785,2]
[334133800,1722790237652,-1583.406,0.00022785,2]
[334133801,1722790237662,-451.0,0.00022785,2]
[334133802,1722790237672,-699.12638133,0.00022785,2]
[334133803,1722790237683,-852.87361867,0.00022785,2]
[334133804,1722790237698,-134.58382058,0.00022785,2]
[334133805,1722790237719,-676.41617942,0.00022785,2]
[334133806,1722790237729,-439.87280631,0.00022785,2]
[334133807,1722790237741,-861.86719369,0.00022785,2]
[334133808,1722790237752,-550.0,0.00022785,2]
[334133809,1722790237762,-1370.0,0.00022785,2]
[334133810,1722790237772,-1227.94270632,0.00022785,2]
[334133811,1722790237796,-758.11221771,0.00022785,2]
[334133812,1722790237807,-265.049987,0.00022785,2]
[334133813,1722790237819,-1036.89508897,0.00022785,2]
[334133814,1722790237829,-229.80491103,0.00022785,2]
[334133815,1722790237849,-13503.80000002,0.00022785,2]
[334133816,1722790237868,-8000.39508895,0.00022785,2]
[334133817,1722790237877,-153.0,0.00022785,2]
[334133818,1722790237887,-157.364,0.00022785,2]
[334133819,1722790237896,-5836.0,0.00022785,2]
[334133820,1722790237906,-1668.0,0.00022785,2]
[334133821,1722790237915,-150.178,0.00022785,2]
[334133822,1722790237925,-5128.0,0.00022785,2]
[334133824,1722790237934,-317.561,0.00022785,2]
[334133826,1722790237949,-193.915,0.00022785,2]
[334133827,1722790237958,-329.192,0.00022785,2]
[334133829,1722790237967,-150.0,0.00022785,2]
[334133831,1722790237977,-162.737,0.00022785,2]
[334133833,1722790237987,-2681.9773,0.00022813,2]
[334133835,1722790237996,-1000.0,0.00022895,2]
[334133837,1722790238005,-10000.0,0.00022913,2]
[334133839,1722790238015,-7500.0,0.00022913,2]
[334133841,1722790238024,-2500.0,0.00022913,2]
[334133842,1722790238033,-217.51297545,0.00022913,2]
[334133844,1722790238043,-176.21753282,0.00022913,2]
[334133846,1722790238053,-192.67548378,0.00022995,2]
[334133848,1722790238062,-305.47,0.00022995,2]
[334133849,1722790238072,-7515.4207,0.00022995,2]
[334133850,1722790238081,-200.0,0.00023,2]
[334133851,1722790238091,-17336.84198965,0.00023,7]
[334133852,1722790238102,-532.53080665,0.00023,7]
[334133853,1722790238113,-27069.22798806,0.00023,7]
[334133854,1722790238125,-1698.02186945,0.00023,7]
[334133866,1722790239810,-262.97233316,0.00023,7]
[334133868,1722790239822,-5594.43146235,0.00023,7]
[334133871,1722790239833,-320.10297877,0.00023,7]
[334133880,1722790240213,-68963.51653075,0.00023,7]
[334133881,1722790240339,-1818.9,0.00023,7]
[334133882,1722790240367,-535.85788251,0.00023,7]
[334133883,1722790240379,-1534.61932229,0.00023,7]
[334133884,1722790240390,-4285.81638443,0.00023,7]
[334133885,1722790240401,-1026.04080833,0.00023,7]
[334133886,1722790240412,-1086.34670665,0.00023,7]
[334133887,1722790240436,-338.0226125,0.00023,7]
[334133888,1722790240449,-19357.1500304,0.00023,7]
[334133889,1722790240460,-12694.96982004,0.00023,7]
[334133890,1722790240471,-1031.00172718,0.00023,7]
[334133891,1722790240483,-425.54699999,0.00023,7]
[334133892,1722790240494,-1360.58711801,0.00023,7]
[334133893,1722790240519,-2481.97911351,0.00023,7]
[334133894,1722790240530,-12878.0998082,0.00023,7]
[334133896,1722790240541,-359.58943198,0.00023,7]
[334133898,1722790240556,-3798.55526251,0.00023,7]
[334133900,1722790240569,-2115.72132122,0.00023,7]
[334133902,1722790240581,-6757.96750055,0.00023,7]
[334133904,1722790240592,-30442.22785514,0.00023,7]
[334133907,1722790240603,-1617.592005,0.00023,7]
[334133909,1722790240615,-1363.68834929,0.00023,7]
[334133911,1722790240626,-2023.404,0.00023,7]
[334133913,1722790240637,-1352.08206824,0.00023,7]
[334133915,1722790240651,-1042.53380516,0.00023,7]
[334133918,1722790240662,-837.74750378,0.00023,7]
[334133920,1722790240678,-79092.21423502,0.00023,7]
[334133922,1722790240689,-48804.17125912,0.00023,7]
[334133924,1722790240701,-28011.38950682,0.00023,7]
[334133933,1722790242622,-250.0,0.00022071,2]
[334133934,1722790242632,-4986.26623947,0.00023,7]
[334133935,1722790242679,-66965.7609026,0.00023,7]
[334133936,1722790242738,-361.01292754,0.00023,7]
[334133938,1722790243400,-1518.05,0.00023,7]
[334133939,1722790243411,-330.5,0.00023,7]
[334133940,1722790243422,-3722.0,0.00023,7]
[334133941,1722790243438,-3000.0,0.00023,7]
[334133942,1722790243452,-767.3822835,0.00023,7]
[334133943,1722790243463,-662.74,0.00023,7]
[334133944,1722790243475,-532.35328105,0.00023,7]
[334133945,1722790243486,-2123.69096423,0.00023,7]
[334133946,1722790243498,-1469.59370028,0.00023,7]
[334133947,1722790243517,-28240.08299187,0.00023,7]
[334133948,1722790243528,-2109.7800008,0.00023,7]
[334133949,1722790243539,-10290.3229,0.00023,7]
[334133950,1722790243550,-1058.55765,0.00023,7]
[334133951,1722790243575,-3536.19387329,0.00023,7]
[334133976,1722790245859,-470.22347517,0.00023,7]
[334133978,1722790245871,-61104.43878749,0.00023,7]
[334133983,1722790245888,-11250.77781525,0.00023,7]
[334134019,1722790247780,-192.567,0.00022785,2]
[334134020,1722790247792,-7578.66947877,0.00023,7]
[334134021,1722790247808,-2250.41745785,0.00023,7]
[334134022,1722790247819,-518.90570714,0.00023,7]
[334134023,1722790247830,-571.80441021,0.00023,7]
[334134024,1722790247841,-213095.45477985,0.00023,7]
[334134025,1722790247851,-5177.5175671,0.00023,7]
[334134026,1722790247863,-959.66047797,0.00023,7]
[334134027,1722790247881,-109403.39924592,0.00023,7]
[334134028,1722790247891,-57282.7100825,0.00023003,3]
[334134029,1722790247900,-500.0,0.00023013,9]
[334134030,1722790247910,-500.0,0.00023013,9]
[334134031,1722790247919,-500.0,0.00023013,9]
[334134032,1722790247929,-500.0,0.00023013,9]
[334134033,1722790247940,-500.0,0.00023013,9]
[334134034,1722790247953,-500.0,0.00023013,9]
[334134036,1722790247963,-570.2645786,0.00023013,9]
[334134038,1722790247972,-500.0,0.00023013,9]
[334134039,1722790247981,-500.0,0.00023013,9]
[334134040,1722790247991,-500.0,0.00023013,9]
[334134041,1722790248000,-500.0,0.00023013,9]
[334134042,1722790248010,-500.0,0.00023013,9]
[334134044,1722790248019,-500.0,0.00023013,9]
[334134045,1722790248028,-500.0,0.00023013,9]
[334134046,1722790248038,-500.0,0.00023013,9]
[334134047,1722790248046,-972.11,0.00023013,9]
[334134048,1722790248055,-500.0,0.00023013,9]
[334134049,1722790248065,-500.0,0.00023013,9]
[334134050,1722790248075,-500.0,0.00023013,9]
[334134051,1722790248084,-500.0,0.00023013,9]
[334134052,1722790248094,-500.0,0.00023013,9]
[334134053,1722790248103,-500.0,0.00023013,9]
[334134054,1722790248112,-500.0,0.00023013,9]
[334134055,1722790248121,-500.0,0.00023013,9]
[334134056,1722790248131,-500.0,0.00023013,9]
[334134057,1722790248139,-500.0,0.00023013,9]
[334134058,1722790248148,-500.0,0.00023013,9]
[334134059,1722790248158,-500.0,0.00023013,9]
[334134060,1722790248167,-500.0,0.00023013,9]
[334134061,1722790248177,-500.0,0.00023013,9]
[334134062,1722790248186,-500.0,0.00023013,9]
[334134063,1722790248199,-500.0,0.00023013,9]
[334134064,1722790248208,-395.02,0.00023013,9]
[334134065,1722790248218,-500.0,0.00023013,9]
[334134066,1722790248228,-500.0,0.00023013,9]
[334134067,1722790248237,-500.0,0.00023013,9]
[334134068,1722790248246,-500.0,0.00023013,9]
[334134069,1722790248255,-500.0,0.00023013,9]
[334134070,1722790248265,-500.0,0.00023013,9]
[334134071,1722790248274,-500.0,0.00023013,9]
[334134072,1722790248283,-500.0,0.00023013,9]
[334134073,1722790248293,-500.0,0.00023013,9]
[334134074,1722790248302,-500.0,0.00023013,9]
[334134075,1722790248312,-500.0,0.00023013,9]
[334134076,1722790248321,-500.0,0.00023013,9]
[334134077,1722790248331,-500.0,0.00023013,9]
[334134078,1722790248340,-500.0,0.00023013,9]
[334134079,1722790248350,-500.0,0.00023013,9]
[334134080,1722790248359,-500.0,0.00023013,9]
[334134081,1722790248369,-500.0,0.00023013,9]
[334134082,1722790248378,-500.0,0.00023013,9]
[334134083,1722790248388,-500.0,0.00023013,9]
[334134084,1722790248397,-500.0,0.00023013,9]
[334134085,1722790248407,-500.0,0.00023013,9]
[334134086,1722790248417,-500.0,0.00023013,9]
[334134087,1722790248426,-500.0,0.00023013,9]
[334134088,1722790248436,-500.0,0.00023013,9]
[334134089,1722790248445,-500.0,0.00023013,9]
[334134090,1722790248458,-500.0,0.00023013,9]
[334134091,1722790248467,-549.11,0.00023013,9]
[334134092,1722790248477,-500.0,0.00023013,9]
[334134093,1722790248487,-507.03621387,0.00023013,9]
[334134094,1722790248497,-500.0,0.00023013,9]
[334134095,1722790248506,-500.0,0.00023013,9]
[334134096,1722790248516,-500.0,0.00023013,9]
[334134097,1722790248525,-500.0,0.00023013,9]
[334134098,1722790248535,-500.0,0.00023013,9]
[334134099,1722790248545,-185.75,0.00023013,9]
[334134100,1722790248556,-500.0,0.00023013,9]
[334134101,1722790248569,-500.0,0.00023013,9]
[334134102,1722790248579,-500.0,0.00023013,9]
[334134103,1722790248589,-500.0,0.00023013,9]
[334134104,1722790248599,-500.0,0.00023013,9]
[334134105,1722790248608,-500.0,0.00023013,9]
[334134106,1722790248618,-500.0,0.00023013,9]
[334134107,1722790248628,-431.4300371,0.00023013,9]
[334134108,1722790248640,-500.0,0.00023013,9]
[334134109,1722790248649,-500.0,0.00023013,9]
[334134110,1722790248659,-500.0,0.00023013,9]
[334134111,1722790248669,-500.0,0.00023013,9]
[334134112,1722790248679,-500.0,0.00023013,9]
[334134113,1722790248688,-495.82,0.00023013,9]
[334134114,1722790248700,-500.0,0.00023013,9]
[334134115,1722790248710,-500.0,0.00023013,9]
[334134116,1722790248719,-500.0,0.00023013,9]
[334134117,1722790248730,-500.0,0.00023013,9]
[334134118,1722790248740,-500.0,0.00023013,9]
[334134119,1722790248750,-500.0,0.00023013,9]
[334134120,1722790248760,-500.0,0.00023013,9]
[334134121,1722790248770,-727.6,0.00023013,9]
[334134122,1722790248779,-500.0,0.00023013,9]
[334134123,1722790248789,-500.0,0.00023013,9]
[334134124,1722790248799,-500.0,0.00023013,9]
[334134125,1722790248809,-500.0,0.00023013,9]
[334134126,1722790248819,-500.0,0.00023013,9]
[334134127,1722790248828,-500.0,0.00023013,9]
[334134128,1722790248839,-500.0,0.00023013,9]
[334134129,1722790248849,-500.0,0.00023013,9]
[334134130,1722790248859,-500.0,0.00023013,9]
[334134131,1722790248868,-500.0,0.00023013,9]
[334134132,1722790248878,-500.0,0.00023013,9]
[334134133,1722790248888,-500.0,0.00023013,9]
[334134134,1722790248898,-500.0,0.00023013,9]
[334134135,1722790248908,-500.0,0.00023013,9]
[334134136,1722790248917,-502.17844903,0.00023013,9]
[334134137,1722790248927,-500.0,0.00023013,9]
[334134138,1722790248937,-500.0,0.00023013,9]
[334134139,1722790248946,-500.0,0.00023013,9]
[334134140,1722790248966,-500.0,0.00023013,9]
[334134141,1722790248975,-500.0,0.00023013,9]
[334134142,1722790248985,-500.0,0.00023013,9]
[334134143,1722790248994,-500.0,0.00023013,9]
[334134144,1722790249004,-214.69,0.00023013,9]
[334134145,1722790249015,-500.0,0.00023013,9]
[334134146,1722790249025,-500.0,0.00023013,9]
[334134147,1722790249035,-500.0,0.00023013,9]
[334134148,1722790249045,-500.0,0.00023013,9]
[334134149,1722790249055,-500.0,0.00023013,9]
[334134150,1722790249064,-500.0,0.00023013,9]
[334134151,1722790249074,-500.0,0.00023013,9]
[334134152,1722790249084,-568.22956787,0.00023013,9]
[334134153,1722790249094,-500.0,0.00023013,9]
[334134154,1722790249104,-958.95,0.00023013,9]
[334134155,1722790249113,-500.0,0.00023013,9]
[334134156,1722790249123,-500.0,0.00023013,9]
[334134157,1722790249133,-500.0,0.00023013,9]
[334134158,1722790249143,-464.71,0.00023013,9]
[334134159,1722790249152,-500.0,0.00023013,9]
[334134160,1722790249162,-500.0,0.00023013,9]
[334134161,1722790249171,-397.92,0.00023013,9]
[334134162,1722790249181,-500.0,0.00023013,9]
[334134163,1722790249191,-520.12,0.00023013,9]
[334134164,1722790249203,-500.0,0.00023013,9]
[334134165,1722790249212,-500.0,0.00023013,9]
[334134166,1722790249222,-500.0,0.00023013,9]
[334134167,1722790249231,-452.4,0.00023013,9]
[334134168,1722790249241,-500.0,0.00023013,9]
[334134169,1722790249251,-500.0,0.00023013,9]
[334134170,1722790249261,-500.0,0.00023013,9]
[334134171,1722790249271,-500.0,0.00023013,9]
[334134172,1722790249281,-500.0,0.00023013,9]
[334134173,1722790249291,-500.0,0.00023013,9]
[334134174,1722790249301,-500.0,0.00023013,9]
[334134175,1722790249311,-500.0,0.00023013,9]
[334134176,1722790249320,-512.0,0.00023013,9]
[334134177,1722790249330,-500.0,0.00023013,9]
[334134178,1722790249340,-500.0,0.00023013,9]
[334134179,1722790249350,-342.10957278,0.00023013,9]
[334134180,1722790249360,-500.0,0.00023013,9]
[334134181,1722790249369,-500.0,0.00023013,9]
[334134182,1722790249379,-500.0,0.00023013,9]
[334134183,1722790249388,-803.32,0.00023013,9]
[334134184,1722790249398,-500.0,0.00023013,9]
[334134185,1722790249407,-500.0,0.00023013,9]
[334134186,1722790249417,-500.0,0.00023013,9]
[334134187,1722790249427,-500.0,0.00023013,9]
[334134188,1722790249436,-500.0,0.00023013,9]
[334134189,1722790249445,-612.7,0.00023013,9]
[334134190,1722790249457,-683.82,0.00023013,9]
[334134191,1722790249467,-4645.82,0.00023013,9]
[334134192,1722790249477,-500.0,0.00023013,9]
[334134193,1722790249487,-500.0,0.00023013,9]